fUST/lending_fUST_20240131
["ID","MTS","AMOUNT","RATE_DAILY","PERIOD"]
[313047358,1706693442460,-389.789718,0.00024657,2]
[313047359,1706693442470,-389.789718,0.00024657,2]
[313047360,1706693442480,-389.789718,0.00024657,2]
[313047361,1706693442489,-389.789718,0.00024657,2]
[313047362,1706693442498,-389.789718,0.00024657,2]
[313047363,1706693442508,-389.789726,0.00024657,2]
[313047364,1706693442519,-1762.12,0.00024657,2]
[313047365,1706693442528,-500.0,0.00024657,2]
[313047366,1706693442541,-500.0,0.00024657,2]
[313047367,1706693442551,-500.0,0.00024657,2]
[313047369,1706693442560,-506.75,0.00024657,2]
[313047371,1706693442570,-500.0,0.00024657,2]
[313047372,1706693442580,-500.0,0.00024657,2]
[313047374,1706693442589,-500.0,0.00024657,2]
[313047375,1706693442598,-632.69,0.00024657,2]
[313047377,1706693442608,-2601.72,0.00024657,2]
[313047379,1706693442616,-533.8,0.00024657,2]
[313047381,1706693442624,-2366.81,0.00024657,2]
[313047383,1706693442634,-500.0,0.00024657,2]
[313047385,1706693442643,-500.0,0.00024657,2]
[313047387,1706693442652,-500.0,0.00024657,2]
[313047389,1706693442661,-4208.23,0.00024657,2]
[313047390,1706693442670,-500.0,0.00024657,2]
[313047392,1706693442680,-500.0,0.00024657,2]
[313047393,1706693442689,-568.35400767,0.00024657,2]
[313047394,1706693442698,-238.65381397,0.00024657,2]
[313047395,1706693442707,-1212.33,0.00024657,2]
[313047396,1706693442717,-500.0,0.00024657,2]
[313047397,1706693442726,-773.29,0.00024657,2]
[313047398,1706693442735,-5559.17,0.00024657,2]
[313047399,1706693442744,-865.06,0.00024657,2]
[313047400,1706693442754,-1209.46,0.00024657,2]
[313047401,1706693442763,-6576.37,0.00024657,2]
[313047403,1706693442773,-816.41,0.00024657,2]
[313047405,1706693442782,-500.0,0.00024657,2]
[313047406,1706693442792,-500.0,0.00024657,2]
[313047407,1706693442802,-500.0,0.00024657,2]
[313047409,1706693442811,-500.0,0.00024657,2]
[313047412,1706693442820,-510.80103802,0.00024657,2]
[313047414,1706693442829,-500.0,0.00024657,2]
[313047416,1706693442838,-500.0,0.00024657,2]
[313047419,1706693442847,-2977.47,0.00024657,2]
[313047423,1706693442856,-500.0,0.00024657,2]
[313047426,1706693442866,-3001.61,0.00024657,2]
[313047427,1706693442878,-500.0,0.00024657,2]
[313047431,1706693442887,-500.0,0.00024657,2]
[313047434,1706693442895,-500.0,0.00024657,2]
[313047436,1706693442905,-500.0,0.00024657,2]
[313047438,1706693442915,-500.0,0.00024657,2]
[313047441,1706693442926,-500.0,0.00024657,2]
[313047443,1706693442935,-500.0,0.00024657,2]
[313047446,1706693442945,-500.0,0.00024657,2]
[313047447,1706693442954,-360.0,0.00024657,2]
[313047448,1706693442963,-360.0,0.00024657,2]
[313047449,1706693442973,-360.0,0.00024657,2]
[313047450,1706693442983,-613.82,0.00024657,2]
[313047451,1706693442992,-360.0,0.00024657,2]
[313047452,1706693443001,-360.0,0.00024657,2]
[313047453,1706693443011,-360.0,0.00024657,2]
[313047454,1706693443020,-553.73391012,0.00024657,2]
[313047456,1706693443030,-360.0,0.00024657,2]
[313047457,1706693443040,-360.0,0.00024657,2]
[313047459,1706693443049,-360.0,0.00024657,2]
[313047461,1706693443058,-360.0,0.00024657,2]
[313047463,1706693443067,-500.0,0.00024657,2]
[313047465,1706693443077,-360.0,0.00024657,2]
[313047467,1706693443086,-360.0,0.00024657,2]
[313047469,1706693443095,-360.0,0.00024657,2]
[313047471,1706693443105,-360.0,0.00024657,2]
[313047473,1706693443114,-385.59773,0.00024657,2]
[313047475,1706693443123,-360.0,0.00024657,2]
[313047477,1706693443133,-385.59773,0.00024657,2]
[313047479,1706693443142,-360.0,0.00024657,2]
[313047481,1706693443152,-385.59773,0.00024657,2]
[313047482,1706693443161,-360.0,0.00024657,2]
[313047483,1706693443170,-385.59773,0.00024657,2]
[313047484,1706693443180,-360.0,0.00024657,2]
[313047485,1706693443189,-385.59773,0.00024657,2]
[313047486,1706693443198,-385.59773,0.00024657,2]
[313047487,1706693443207,-360.0,0.00024657,2]
[313047488,1706693443217,-385.59773,0.00024657,2]
[313047489,1706693443226,-360.0,0.00024657,2]
[313047490,1706693443235,-385.59773,0.00024657,2]
[313047491,1706693443244,-385.59773,0.00024657,2]
[313047492,1706693443254,-385.59773,0.00024657,2]
[313047493,1706693443263,-500.0,0.00024657,2]
[313047494,1706693443273,-527.73,0.00024657,2]
[313047496,1706693443282,-385.59773,0.00024657,2]
[313047497,1706693443294,-385.59773,0.00024657,2]
[313047498,1706693443303,-500.0,0.00024657,2]
[313047499,1706693443312,-385.59773,0.00024657,2]
[313047500,1706693443322,-385.59773,0.00024657,2]
[313047501,1706693443331,-385.59773,0.00024657,2]
[313047502,1706693443341,-385.59773,0.00024657,2]
[313047503,1706693443351,-385.59773,0.00024657,2]
[313047504,1706693443360,-385.59773,0.00024657,2]
[313047505,1706693443370,-385.59773,0.00024657,2]
[313047506,1706693443379,-385.597738,0.00024657,2]
[313047507,1706693443389,-500.0,0.00024657,2]
[313047508,1706693443398,-500.0,0.00024657,2]
[313047510,1706693443407,-1352.37,0.00024657,2]
[313047511,1706693443417,-1769.46,0.00024657,2]
[313047513,1706693443426,-500.0,0.00024657,2]
[313047515,1706693443436,-2154.64,0.00024657,2]
[313047516,1706693443445,-500.0,0.00024657,2]
[313047517,1706693443455,-500.0,0.00024657,2]
[313047518,1706693443466,-1077.19,0.00024657,2]
[313047520,1706693443475,-151.0,0.00024657,2]
[313047521,1706693443484,-151.0,0.00024657,2]
[313047523,1706693443494,-151.0,0.00024657,2]
[313047524,1706693443503,-232.912714,0.00024657,2]
[313047525,1706693443513,-500.0,0.00024657,2]
[313047526,1706693443522,-15422.7,0.00024657,2]
[313047527,1706693443532,-29218.12,0.00024657,2]
[313047528,1706693443544,-3139.77,0.00024657,2]
[313047529,1706693443553,-500.0,0.00024657,2]
[313047530,1706693443563,-1145.59,0.00024657,2]
[313047531,1706693443573,-500.0,0.00024657,2]
[313047532,1706693443582,-174.3742027,0.00024657,2]
[313047533,1706693443591,-500.0,0.00024657,2]
[313047534,1706693443601,-500.0,0.00024657,2]
[313047535,1706693443609,-500.0,0.00024657,2]
[313047536,1706693443618,-500.0,0.00024657,2]
[313047537,1706693443628,-500.0,0.00024657,2]
[313047538,1706693443637,-500.0,0.00024657,2]
[313047539,1706693443646,-500.0,0.00024657,2]
[313047540,1706693443655,-500.0,0.00024657,2]
[313047541,1706693443664,-508.76429048,0.00024657,2]
[313047542,1706693443674,-500.0,0.00024657,2]
[313047543,1706693443683,-500.0,0.00024657,2]
[313047544,1706693443692,-538.63298042,0.00024657,2]
[313047545,1706693443702,-500.0,0.00024657,2]
[313047546,1706693443711,-500.0,0.00024657,2]
[313047547,1706693443721,-500.0,0.00024657,2]
[313047548,1706693443730,-609.4752151,0.00024657,2]
[313047549,1706693443740,-500.0,0.00024657,2]
[313047550,1706693443749,-226.34165706,0.00024657,2]
[313047551,1706693443759,-500.0,0.00024657,2]
[313047552,1706693443768,-500.0,0.00024657,2]
[313047553,1706693443778,-1996.15,0.00024657,2]
[313047554,1706693443788,-500.0,0.00024657,2]
[313047555,1706693443797,-500.0,0.00024657,2]
[313047556,1706693443807,-467.36530748,0.00024657,2]
[313047557,1706693443816,-514.47606943,0.00024657,2]
[313047558,1706693443825,-2379.27,0.00024657,2]
[313047559,1706693443834,-500.0,0.00024657,2]
[313047560,1706693443843,-520.21219445,0.00024657,2]
[313047561,1706693443855,-500.0,0.00024657,2]
[313047562,1706693443866,-500.0,0.00024657,2]
[313047563,1706693443876,-500.0,0.00024657,2]
[313047564,1706693443886,-500.0,0.00024657,2]
[313047565,1706693443895,-500.0,0.00024657,2]
[313047566,1706693443904,-500.0,0.00024657,2]
[313047567,1706693443914,-500.0,0.00024657,2]
[313047568,1706693443923,-5097.17,0.00024657,2]
[313047569,1706693443933,-13217.38,0.00024657,2]
[313047570,1706693443943,-510.41281854,0.00024657,2]
[313047571,1706693444030,-5011.01,0.00024657,2]
[313047572,1706693444042,-6451.66,0.00024657,2]
[313047573,1706693444051,-1110.6,0.00024657,2]
[313047574,1706693444060,-500.0,0.00024657,2]
[313047575,1706693444070,-500.0,0.00024657,2]
[313047576,1706693444079,-1254.15,0.00024657,2]
[313047577,1706693444088,-500.0,0.00024657,2]
[313047578,1706693444097,-2307.34,0.00024657,2]
[313047579,1706693444106,-500.0,0.00024657,2]
[313047580,1706693444115,-500.0,0.00024657,2]
[313047581,1706693444124,-429.75278267,0.00024657,2]
[313047582,1706693444133,-3151.49,0.00024657,2]
[313047583,1706693444142,-500.0,0.00024657,2]
[313047584,1706693444151,-10000.0,0.00024657,2]
[313047585,1706693444160,-10000.0,0.00024657,2]
[313047586,1706693444170,-889.99,0.00024657,2]
[313047587,1706693444179,-10000.0,0.00024657,2]
[313047588,1706693444188,-10000.0,0.00024657,2]
[313047589,1706693444198,-10000.0,0.00024657,2]
[313047590,1706693444207,-10000.0,0.00024657,2]
[313047591,1706693444217,-10000.0,0.00024657,2]
[313047592,1706693444228,-10000.0,0.00024657,2]
[313047593,1706693444237,-10000.0,0.00024657,2]
[313047594,1706693444246,-10000.0,0.00024657,2]
[313047595,1706693444255,-10000.0,0.00024657,2]
[313047596,1706693444265,-2254.98,0.00024657,2]
[313047597,1706693444274,-1813.74943096,0.00024657,2]
[313047598,1706693444300,-2308.54967521,0.00024657,2]
[313047599,1706693444314,-5877.70089383,0.00024657,2]
[313047600,1706693444323,-239.89048593,0.00024657,2]
[313047623,1706693446983,-155.00775039,0.00021835,2]
[313047624,1706693446993,-2220.52224961,0.00021835,2]
[313047625,1706693447448,-4575.84546184,0.00021835,2]
[313047626,1706693447458,-3448.74848607,0.00024657,2]
[313048089,1706694640205,-323.57048434,0.00020895,2]
[313048090,1706694640214,-6796.36771145,0.00020895,2]
[313048091,1706694640224,-155.00775039,0.00020896,2]
[313048092,1706694640234,-1017.03372915,0.00020896,2]
[313048093,1706694640245,-181.26836622,0.00020897,2]
[313048094,1706694640259,-164.29062038,0.00020898,2]
[313048095,1706694640268,-180.06935571,0.00020998,2]
[313048096,1706694640278,-156.72065307,0.00020998,2]
[313048097,1706694640287,-155.26583801,0.00020998,2]
[313048098,1706694640298,-163.36525475,0.00020998,2]
[313048099,1706694640307,-156.69992293,0.00020998,2]
[313048100,1706694640316,-161.2262038,0.00020998,2]
[313048101,1706694640326,-1272.37497712,0.00020998,2]
[313048102,1706694640336,-171.7397944,0.00020998,2]
[313048105,1706694640346,-169.27011495,0.00020998,2]
[313048108,1706694640355,-682.06374149,0.00020998,2]
[313048111,1706694640364,-1589.68284634,0.00020998,2]
[313048113,1706694640373,-525.27501604,0.00020999,2]
[313048116,1706694640383,-561.21221054,0.00020999,2]
[313048118,1706694640391,-55769.51867438,0.00021,2]
[313048120,1706694640401,-164.29062038,0.00021818,2]
[313048122,1706694640410,-166.666666,0.00021918,2]
[313048124,1706694640419,-3169.86442143,0.00021998,2]
[313048126,1706694640428,-13486.40348308,0.00021999,2]
[313048128,1706694640438,-2037.54507979,0.00022,2]
[313048130,1706694640447,-155.00775039,0.00022,2]
[313048132,1706694640456,-426.66199522,0.00022,2]
[313048134,1706694640466,-166.666666,0.00022431,2]
[313048136,1706694640474,-166.666666,0.00022944,2]
[313048138,1706694640483,-9955.27197623,0.00023,2]
[313048140,1706694640493,-200.0,0.00023096,7]
[313048142,1706694640502,-166.666666,0.00023456,2]
[313048144,1706694640511,-162.25579296,0.00023779,2]
[313048146,1706694640520,-15422.7,0.00023877,2]
[313048148,1706694640530,-500.0,0.00023877,2]
[313048150,1706694640539,-500.0,0.00023877,2]
[313048152,1706694640548,-2254.98,0.00023877,2]
[313048154,1706694640558,-500.0,0.00023877,2]
[313048156,1706694640567,-500.0,0.00023877,2]
[313048158,1706694640577,-337.2807246,0.00023877,2]
[313048160,1706694640586,-500.0,0.00023877,2]
[313048162,1706694640595,-500.0,0.00023877,2]
[313048164,1706694640605,-500.0,0.00023877,2]
[313048166,1706694640614,-400.10441139,0.00023877,2]
[313048168,1706694640624,-500.0,0.00023877,2]
[313048170,1706694640632,-500.0,0.00023877,2]
[313048172,1706694640642,-500.0,0.00023877,2]
[313048174,1706694640651,-450.62631018,0.00023877,2]
[313048176,1706694640660,-500.0,0.00023877,2]
[313048178,1706694640670,-500.0,0.00023877,2]
[313048180,1706694640679,-200.0,0.00023877,2]
[313048182,1706694640687,-500.0,0.00023877,2]
[313048184,1706694640697,-500.0,0.00023877,2]
[313048186,1706694640706,-500.0,0.00023877,2]
[313048188,1706694640715,-500.0,0.00023877,2]
[313048190,1706694640724,-500.0,0.00023877,2]
[313048192,1706694640734,-500.0,0.00023877,2]
[313048194,1706694640744,-500.0,0.00023877,2]
[313048196,1706694640753,-500.0,0.00023878,2]
[313048198,1706694640762,-500.0,0.00023878,2]
[313048200,1706694640771,-500.0,0.00023878,2]
[313048202,1706694640781,-500.0,0.00023878,2]
[313048204,1706694640790,-155.14299039,0.00023878,2]
[313048206,1706694640800,-578.11,0.00023878,2]
[313048208,1706694640809,-510.73879204,0.00023878,2]
[313048210,1706694640819,-500.0,0.00023878,2]
[313048212,1706694640827,-500.0,0.00023878,2]
[313048214,1706694640836,-500.0,0.00023878,2]
[313048216,1706694640845,-500.0,0.00023878,2]
[313048218,1706694640855,-889.99,0.00023878,2]
[313048220,1706694640864,-500.0,0.00023878,2]
[313048222,1706694640873,-500.0,0.00023878,2]
[313048224,1706694640881,-500.0,0.00023878,2]
[313048226,1706694640893,-325.83874545,0.00023878,2]
[313048228,1706694640902,-500.0,0.00023878,2]
[313048230,1706694640911,-500.0,0.00023878,2]
[313048232,1706694640920,-500.0,0.00023878,2]
[313048234,1706694640929,-500.0,0.00023878,2]
[313048236,1706694640939,-774.69,0.00023878,2]
[313048238,1706694640948,-780.57,0.00023878,2]
[313048240,1706694640958,-6302.35,0.00023878,2]
[313048242,1706694640967,-866.63,0.00023878,2]
[313048244,1706694640976,-500.0,0.00023878,2]
[313048246,1706694640985,-500.0,0.00023878,2]
[313048248,1706694640996,-500.0,0.00023878,2]
[313048250,1706694641005,-525.82967829,0.00023878,2]
[313048252,1706694641014,-500.0,0.00023878,2]
[313048254,1706694641023,-29218.12,0.00023878,2]
[313048256,1706694641032,-500.0,0.00023878,2]
[313048258,1706694641041,-500.0,0.00023878,2]
[313048260,1706694641050,-500.0,0.00023878,2]
[313048262,1706694641060,-500.0,0.00023878,2]
[313048264,1706694641068,-500.0,0.00023878,2]
[313048266,1706694641077,-577.72132354,0.00023878,2]
[313048268,1706694641086,-500.0,0.00023878,2]
[313048270,1706694641095,-500.0,0.00023878,2]
[313048273,1706694641107,-1411.17,0.00023878,2]
[313048274,1706694641117,-1302.59,0.00023878,2]
[313048276,1706694641126,-226.34165706,0.00023878,2]
[313048278,1706694641135,-500.0,0.00023878,2]
[313048281,1706694641144,-500.0,0.00023878,2]
[313048283,1706694641154,-500.0,0.00023878,2]
[313048285,1706694641162,-2379.27,0.00023878,2]
[313048287,1706694641171,-500.0,0.00023878,2]
[313048289,1706694641180,-500.0,0.00023878,2]
[313048291,1706694641190,-6451.66,0.00023878,2]
[313048293,1706694641199,-500.0,0.00023878,2]
[313048295,1706694641208,-508.76429048,0.00023878,2]
[313048297,1706694641217,-500.0,0.00023878,2]
[313048299,1706694641228,-500.0,0.00023878,2]
[313048301,1706694641237,-500.0,0.00023878,2]
[313048303,1706694641247,-2617.59,0.00023878,2]
[313048305,1706694641258,-500.0,0.00023878,2]
[313048307,1706694641268,-500.0,0.00023878,2]
[313048309,1706694641277,-500.0,0.00023878,2]
[313048311,1706694641286,-500.0,0.00023878,2]
[313048313,1706694641296,-500.0,0.00023878,2]
[313048315,1706694641304,-500.0,0.00023878,2]
[313048317,1706694641313,-2093.39,0.00023878,2]
[313048319,1706694641322,-500.0,0.00023878,2]
[313048320,1706694641333,-500.0,0.00023878,2]
[313048322,1706694641343,-500.0,0.00023878,2]
[313048325,1706694641354,-1110.6,0.00023878,2]
[313048327,1706694641363,-501.25,0.00023878,2]
[313048329,1706694641373,-500.0,0.00023879,2]
[313048331,1706694641381,-500.0,0.00023879,2]
[313048333,1706694641390,-500.0,0.00023879,2]
[313048334,1706694641399,-500.0,0.00023879,2]
[313048336,1706694641409,-500.0,0.00023879,2]
[313048339,1706694641418,-2493.32,0.00023879,2]
[313048341,1706694641427,-500.0,0.00023879,2]
[313048342,1706694641437,-2371.1,0.00023879,2]
[313048344,1706694641446,-500.0,0.00023879,2]
[313048346,1706694641455,-3001.61,0.00023879,2]
[313048349,1706694641465,-4032.89,0.00023879,2]
[313048351,1706694641475,-500.0,0.00023879,2]
[313048353,1706694641485,-527.73,0.00023879,2]
[313048355,1706694641496,-500.0,0.00023879,2]
[313048357,1706694641506,-500.0,0.00023879,2]
[313048359,1706694641515,-782.39,0.00023879,2]
[313048361,1706694641525,-500.0,0.00023879,2]
[313048363,1706694641534,-553.73391012,0.00023879,2]
[313048365,1706694641543,-500.0,0.00023879,2]
[313048367,1706694641553,-500.0,0.00023879,2]
[313048369,1706694641562,-1769.46,0.00023879,2]
[313048371,1706694641571,-1077.19,0.00023879,2]
[313048373,1706694641581,-500.0,0.00023879,2]
[313048375,1706694641590,-174.3742027,0.00023879,2]
[313048377,1706694641599,-500.0,0.00023879,2]
[313048378,1706694641608,-500.0,0.00023879,2]
[313048380,1706694641618,-609.4752151,0.00023879,2]
[313048382,1706694641627,-500.0,0.00023879,2]
[313048383,1706694641636,-2307.34,0.00023879,2]
[313048384,1706694641646,-520.21219445,0.00023879,2]
[313048385,1706694641655,-500.0,0.00023879,2]
[313048386,1706694641664,-1996.15,0.00023879,2]
[313048387,1706694641674,-510.41281854,0.00023879,2]
[313048388,1706694641683,-500.0,0.00023879,2]
[313048389,1706694641693,-5097.17,0.00023879,2]
[313048390,1706694641702,-500.0,0.00023879,2]
[313048391,1706694641712,-5011.01,0.00023879,2]
[313048392,1706694641721,-429.75278267,0.00023879,2]
[313048393,1706694641832,-3151.49,0.00023879,2]
[313048394,1706694641843,-500.0,0.00023879,2]
[313048395,1706694641853,-401.89506063,0.0002388,2]
[313048396,1706694641864,-610.81401891,0.0002388,2]
[313048397,1706694641874,-500.0,0.0002388,2]
[313048398,1706694641884,-500.0,0.0002388,2]
[313048399,1706694641895,-500.0,0.0002388,2]
[313048400,1706694641905,-500.0,0.0002388,2]
[313048401,1706694641916,-500.0,0.0002388,2]
[313048402,1706694641926,-500.0,0.0002388,2]
[313048403,1706694641941,-1408.6,0.0002388,2]
[313048404,1706694641950,-500.0,0.0002388,2]
[313048405,1706694641960,-511.86998028,0.0002388,2]
[313048406,1706694641969,-352.27375048,0.0002388,2]
[313048407,1706694641978,-277.16826861,0.0002388,2]
[313048408,1706694641988,-902.58,0.0002388,2]
[313048409,1706694642002,-500.0,0.0002388,2]
[313048410,1706694642012,-500.0,0.0002388,2]
[313048411,1706694642021,-500.0,0.0002388,2]
[313048412,1706694642031,-500.32,0.0002388,2]
[313048413,1706694642043,-500.0,0.0002388,2]
[313048414,1706694642052,-500.0,0.0002388,2]
[313048415,1706694642062,-479.01556999,0.0002388,2]
[313048416,1706694642072,-500.0,0.0002388,2]
[313048417,1706694642082,-500.0,0.0002388,2]
[313048418,1706694642091,-500.0,0.0002388,2]
[313048419,1706694642101,-6491.67,0.0002388,2]
[313048420,1706694642111,-500.0,0.0002388,2]
[313048422,1706694642120,-500.0,0.0002388,2]
[313048424,1706694642130,-500.0,0.0002388,2]
[313048426,1706694642141,-1161.82,0.0002388,2]
[313048427,1706694642151,-1159.06,0.0002388,2]
[313048428,1706694642161,-500.0,0.0002388,2]
[313048430,1706694642171,-500.0,0.0002388,2]
[313048432,1706694642180,-500.0,0.0002388,2]
[313048433,1706694642191,-670.57,0.0002388,2]
[313048434,1706694642201,-500.0,0.0002388,2]
[313048435,1706694642211,-588.24,0.0002388,2]
[313048436,1706694642222,-500.0,0.0002388,2]
[313048437,1706694642233,-500.0,0.0002388,2]
[313048438,1706694642248,-500.0,0.0002388,2]
[313048439,1706694642260,-500.0,0.0002388,2]
[313048440,1706694642271,-500.0,0.0002388,2]
[313048441,1706694642281,-2154.64,0.0002388,2]
[313048442,1706694642293,-500.0,0.0002388,2]
[313048443,1706694642303,-500.0,0.0002388,2]
[313048445,1706694642313,-500.0,0.0002388,2]
[313048447,1706694642323,-500.0,0.0002388,2]
[313048448,1706694642333,-500.0,0.0002388,2]
[313048450,1706694642343,-500.0,0.0002388,2]
[313048452,1706694642353,-500.0,0.0002388,2]
[313048455,1706694642363,-1145.59,0.0002388,2]
[313048456,1706694642372,-538.63298042,0.0002388,2]
[313048458,1706694642382,-500.0,0.0002388,2]
[313048460,1706694642391,-500.0,0.0002388,2]
[313048462,1706694642401,-514.47606943,0.0002388,2]
[313048464,1706694642411,-500.0,0.0002388,2]
[313048466,1706694642422,-500.0,0.0002388,2]
[313048468,1706694642432,-500.0,0.0002388,2]
[313048471,1706694642441,-500.0,0.0002388,2]
[313048472,1706694642451,-500.0,0.0002388,2]
[313048474,1706694642460,-467.36530748,0.0002388,2]
[313048476,1706694642469,-500.0,0.0002388,2]
[313048478,1706694642479,-207.67499752,0.0002388,2]
[313048480,1706694642489,-500.0,0.0002388,2]
[313048482,1706694642501,-500.0,0.0002388,2]
[313048484,1706694642510,-500.0,0.0002388,2]
[313048486,1706694642519,-500.0,0.0002388,2]
[313048488,1706694642532,-500.0,0.0002388,2]
[313048490,1706694642544,-403.95937981,0.0002388,2]
[313048493,1706694642555,-4555.91,0.0002388,2]
[313048494,1706694642564,-500.0,0.0002388,2]
[313048496,1706694642574,-500.0,0.0002388,2]
[313048498,1706694642583,-500.0,0.0002388,2]
[313048500,1706694642593,-500.0,0.0002388,2]
[313048502,1706694642602,-1688.7,0.0002388,2]
[313048504,1706694642611,-500.0,0.0002388,2]
[313048506,1706694642621,-500.0,0.0002388,2]
[313048508,1706694642630,-500.0,0.0002388,2]
[313048510,1706694642640,-500.0,0.0002388,2]
[313048512,1706694642649,-500.0,0.0002388,2]
[313048514,1706694642659,-500.0,0.0002388,2]
[313048516,1706694642669,-454.45290442,0.0002388,2]
[313048518,1706694642679,-500.0,0.0002388,2]
[313048520,1706694642688,-500.0,0.0002388,2]
[313048522,1706694642697,-500.0,0.0002388,2]
[313048524,1706694642707,-500.0,0.0002388,2]
[313048526,1706694642716,-500.0,0.0002388,2]
[313048528,1706694642725,-416.8697277,0.0002388,2]
[313048530,1706694642735,-500.0,0.0002388,2]
[313048532,1706694642747,-500.0,0.0002388,2]
[313048534,1706694642756,-500.0,0.0002388,2]
[313048536,1706694642766,-3073.54,0.0002388,2]
[313048537,1706694642776,-500.0,0.0002388,2]
[313048539,1706694642785,-500.0,0.0002388,2]
[313048541,1706694642795,-151.0,0.0002388,2]
[313048543,1706694642805,-224.142,0.00023934,4]
[313048545,1706694642815,-224.143,0.00023934,4]
[313048547,1706694642824,-224.142,0.00023934,4]
[313048549,1706694642834,-224.142,0.00023934,4]
[313048551,1706694642843,-224.142,0.00023934,4]
[313048553,1706694642853,-166.666666,0.00023969,2]
[313048555,1706694642862,-211.1964663,0.00024,2]
[313048557,1706694642871,-4020.92545495,0.00024,2]
[313048559,1706694642881,-15422.7,0.00024151,2]
[313048561,1706694642890,-219.10688335,0.00024151,2]
[313048563,1706694642899,-500.0,0.00024151,2]
[313048565,1706694642909,-2254.98,0.00024151,2]
[313048567,1706694642918,-500.0,0.00024152,2]
[313048569,1706694642927,-578.11,0.00024152,2]
[313048571,1706694642937,-500.0,0.00024152,2]
[313048573,1706694642946,-500.0,0.00024152,2]
[313048575,1706694642956,-500.0,0.00024152,2]
[313048577,1706694642966,-375.38166832,0.00024152,2]
[313048579,1706694642975,-889.99,0.00024152,2]
[313048581,1706694642984,-500.0,0.00024152,2]
[313048583,1706694642995,-500.0,0.00024152,2]
[313048585,1706694643005,-500.0,0.00024152,2]
[313048587,1706694643015,-500.0,0.00024152,2]
[313048589,1706694643024,-500.0,0.00024152,2]
[313048590,1706694643033,-253.12630174,0.00024152,2]
[313048592,1706694643042,-774.69,0.00024152,2]
[313048594,1706694643052,-780.57,0.00024152,2]
[313048596,1706694643062,-6302.35,0.00024152,2]
[313048599,1706694643071,-866.63,0.00024152,2]
[313048601,1706694643080,-500.0,0.00024152,2]
[313048603,1706694643090,-500.0,0.00024152,2]
[313048606,1706694643099,-500.0,0.00024152,2]
[313048609,1706694643109,-500.0,0.00024152,2]
[313048612,1706694643118,-29218.12,0.00024152,2]
[313048615,1706694643127,-500.0,0.00024152,2]
[313048618,1706694643137,-500.0,0.00024152,2]
[313048621,1706694643146,-500.0,0.00024152,2]
[313048624,1706694643156,-500.0,0.00024152,2]
[313048627,1706694643166,-500.0,0.00024152,2]
[313048630,1706694643175,-500.0,0.00024152,2]
[313048632,1706694643184,-1411.17,0.00024152,2]
[313048634,1706694643193,-1302.59,0.00024152,2]
[313048636,1706694643203,-500.0,0.00024152,2]
[313048638,1706694643212,-500.0,0.00024152,2]
[313048640,1706694643221,-2379.27,0.00024152,2]
[313048642,1706694643230,-500.0,0.00024152,2]
[313048643,1706694643239,-500.0,0.00024152,2]
[313048645,1706694643251,-6451.66,0.00024152,2]
[313048647,1706694643263,-500.0,0.00024152,2]
[313048649,1706694643272,-489.10048454,0.00024152,2]
[313048651,1706694643281,-500.0,0.00024152,2]